fUST/lending_fUST_20251010
["ID","MTS","AMOUNT","RATE_DAILY","PERIOD"]
[390644461,1760110245127,-160.0,0.00020137,2]
[390644462,1760110245139,-192.34552844,0.00020155,2]
[390644463,1760110245149,-800.0,0.00020168,2]
[390644464,1760110245162,-1201.331191,0.00020187,2]
[390644465,1760110245173,-1656.0,0.00020208,2]
[390644466,1760110245184,-453.77403868,0.00020223,4]
[390644467,1760110245194,-218.128692,0.00020238,2]
[390644468,1760110245205,-800.0,0.00020243,2]
[390644469,1760110245216,-450.0,0.00020247,2]
[390644470,1760110245226,-800.0,0.00020257,2]
[390644471,1760110245237,-151.0,0.000203,3]
[390644472,1760110245248,-800.0,0.00020331,2]
[390644473,1760110245258,-800.0,0.00020349,2]
[390644474,1760110245268,-2076.14,0.0002035,3]
[390644475,1760110245278,-1038.06,0.0002035,3]
[390644476,1760110245288,-519.04,0.0002035,3]
[390644477,1760110245298,-160.0,0.0002035,8]
[390644478,1760110245309,-600.0,0.00020384,2]
[390644479,1760110245320,-456.76655343,0.00020412,4]
[390644480,1760110245331,-360.0,0.00020471,2]
[390644481,1760110245341,-151.0,0.000205,4]
[390644482,1760110245356,-642.93619859,0.00020501,2]
[390644483,1760110245366,-200.0,0.0002051,2]
[390644484,1760110245376,-1000.0,0.00020521,2]
[390644485,1760110245387,-500.0,0.00020521,2]
[390644486,1760110245396,-505.20166861,0.00020521,2]
[390644487,1760110245406,-1000.0,0.00020521,2]
[390644488,1760110245416,-503.02100515,0.00020521,2]
[390644489,1760110245426,-1000.0,0.00020521,2]
[390644490,1760110245436,-500.0,0.00020521,2]
[390644491,1760110245447,-501.25382688,0.00020521,2]
[390644492,1760110245457,-1000.0,0.00020521,2]
[390644493,1760110245468,-1000.0,0.00020521,2]
[390644494,1760110245478,-1000.0,0.00020521,2]
[390644495,1760110245488,-500.0,0.00020521,2]
[390644496,1760110245498,-1000.0,0.00020521,2]
[390644497,1760110245508,-1000.0,0.00020521,2]
[390644498,1760110245518,-1000.0,0.00020521,2]
[390644499,1760110245527,-1000.0,0.00020521,2]
[390644500,1760110245538,-337.45008596,0.00020521,2]
[390644501,1760110245553,-662.54991404,0.00020521,2]
[390644502,1760110245564,-1000.0,0.00020521,2]
[390644503,1760110245574,-501.30185518,0.00020521,2]
[390644504,1760110245584,-500.0,0.00020521,2]
[390644505,1760110245595,-306.25304149,0.00020521,2]
[390644506,1760110245612,-1000.0,0.00020521,2]
[390644507,1760110245623,-1000.0,0.00020521,2]
[390644508,1760110245633,-1000.0,0.00020521,2]
[390644509,1760110245643,-1000.0,0.00020521,2]
[390644510,1760110245653,-505.09056079,0.00020521,2]
[390644511,1760110245664,-150.78882729,0.00020521,2]
[390644512,1760110245674,-604.48932129,0.00020521,2]
[390644513,1760110245685,-500.95947091,0.00020521,2]
[390644514,1760110245695,-1000.0,0.00020521,2]
[390644515,1760110245705,-1000.0,0.00020521,2]
[390644516,1760110245715,-151.0,0.00020548,7]
[390644517,1760110245725,-151.0,0.00020548,7]
[390644518,1760110245735,-187.713194,0.00020548,7]
[390644519,1760110245745,-1372.59813323,0.0002061,2]
[390644520,1760110245754,-800.0,0.00020631,2]
[390644521,1760110245764,-800.0,0.00020633,2]
[390644522,1760110245773,-800.0,0.00020648,2]
[390644523,1760110245782,-17617.33,0.00020699,2]
[390644524,1760110245792,-917.6,0.000207,2]
[390644525,1760110245801,-151.0,0.000207,4]
[390644526,1760110245813,-160.0,0.00020702,9]
[390644527,1760110245824,-800.0,0.00020706,2]
[390644528,1760110245835,-800.0,0.00020707,2]
[390644529,1760110245847,-1100.0,0.00020712,2]
[390644530,1760110245867,-800.0,0.00020732,2]
[390644531,1760110245877,-800.0,0.0002086,2]
[390644532,1760110245888,-25072.13093997,0.0002087,2]
[390644535,1760110246010,-2809.86906003,0.0002087,2]
[390644537,1760110246021,-253.15417417,0.000209,2]
[390644538,1760110246033,-720.0,0.0002098,2]
[390644540,1760110246048,-200.0,0.00021,2]
[390644541,1760110246059,-215.0767658,0.00021,10]
[390644545,1760110246078,-10491.9232342,0.00021,10]
[390644546,1760110246089,-273.63071337,0.00021,2]
[390644547,1760110246107,-204.70589237,0.00021,2]
[390644549,1760110246119,-1829.74016056,0.00021,5]
[390644555,1760110246182,-160.0,0.00017315,2]
[390644557,1760110246194,-2879.97874736,0.00021,5]
[390644559,1760110246206,-15888.62,0.00021,5]
[390644561,1760110246217,-846.28789637,0.00021,10]
[390644563,1760110246229,-298.03512572,0.00021,10]
[390644565,1760110246239,-1166.94949963,0.00021,2]
[390644567,1760110246251,-1041.66666667,0.00021,3]
[390644570,1760110246263,-3235.46205825,0.00021,15]
[390644574,1760110246277,-3376.70794175,0.00021,15]
[390644578,1760110246290,-160.0,0.00021,10]
[390644580,1760110246302,-150.0,0.00021013,2]
[390644583,1760110246314,-150.0,0.00021013,2]
[390644585,1760110246326,-150.0,0.00021013,2]
[390644587,1760110246337,-460.0,0.00021019,2]
[390644588,1760110246348,-160.0,0.00021053,10]
[390644589,1760110246372,-1500.0,0.00021068,2]
[390644591,1760110246386,-1500.0,0.00021068,2]
[390644593,1760110246397,-940.07346646,0.00021068,2]
[390644595,1760110246408,-1503.94208982,0.00021068,2]
[390644597,1760110246420,-1500.0,0.00021068,2]
[390644599,1760110246430,-245.81687951,0.00021068,2]
[390644601,1760110246440,-1500.0,0.00021068,2]
[390644603,1760110246451,-1500.0,0.00021068,2]
[390644604,1760110246461,-1003.6411007,0.00021068,2]
[390644605,1760110246478,-1500.0,0.00021068,2]
[390644606,1760110246490,-1500.0,0.00021068,2]
[390644607,1760110246501,-1500.0,0.00021068,2]
[390644608,1760110246513,-1500.0,0.00021068,2]
[390644609,1760110246523,-1097.4,0.000211,2]
[390644610,1760110246536,-1097.4,0.000211,2]
[390644611,1760110246546,-1097.399999,0.000211,2]
[390644612,1760110246558,-689.98031068,0.00021101,2]
[390644613,1760110246569,-980.0,0.0002113,2]
[390644614,1760110246581,-630.0,0.0002113,2]
[390644615,1760110246593,-2159.0,0.0002113,2]
[390644616,1760110246611,-411.0,0.0002113,2]
[390644617,1760110246622,-411.0,0.0002113,2]
[390644618,1760110246634,-800.0,0.00021139,2]
[390644619,1760110246645,-800.0,0.00021204,2]
[390644620,1760110246656,-587.0,0.0002121,2]
[390644621,1760110246668,-55419.78414987,0.00021286,2]
[390644622,1760110246679,-800.0,0.00021318,2]
[390644623,1760110246691,-160.0,0.00021405,11]
[390644624,1760110246702,-800.0,0.00021485,2]
[390644625,1760110246713,-2000.0,0.000215,2]
[390644626,1760110246724,-12690.05954651,0.000215,2]
[390644627,1760110246740,-200.0,0.0002151,2]
[390644628,1760110246757,-250.0,0.00021539,2]
[390644629,1760110246768,-13605.89734571,0.00021561,2]
[390644630,1760110246788,-8415.76265429,0.00021561,2]
[390644631,1760110246803,-560.0,0.00021567,2]
[390644632,1760110246814,-614.9121278,0.00021582,2]
[390644633,1760110246824,-330.36682553,0.000216,5]
[390644634,1760110246873,-1500.0,0.00021616,14]
[390644635,1760110246884,-1199.394576,0.00021616,14]
[390644636,1760110246895,-2000.0,0.00021616,2]
[390644637,1760110246905,-454.19720238,0.00021616,2]
[390644638,1760110246918,-1545.80279762,0.00021616,2]
[390644639,1760110246930,-2078.83164159,0.00021616,2]
[390644640,1760110246940,-2000.0,0.00021616,2]
[390644641,1760110246952,-2000.0,0.00021616,2]
[390644642,1760110246963,-2000.0,0.00021616,2]
[390644643,1760110246973,-1533.42206223,0.00021616,2]
[390644644,1760110247198,-198.13486,0.00019063,2]
[390644645,1760110247209,-154.21979229,0.00019306,2]
[390644646,1760110247219,-1000.0,0.0002,2]
[390644647,1760110247229,-1000.0,0.000205,2]
[390644648,1760110247239,-1000.0,0.00021,2]
[390644649,1760110247250,-1000.0,0.000215,2]
[390644650,1760110247260,-466.57793777,0.00021616,2]
[390644651,1760110247270,-506.198649,0.00021616,2]
[390644652,1760110247280,-2000.0,0.00021616,2]
[390644653,1760110247290,-250.0,0.00021686,2]
[390644654,1760110247300,-737.02442277,0.00021701,2]
[390644655,1760110247311,-160.0,0.00021756,12]
[390644656,1760110247321,-162.92463618,0.00021756,5]
[390644659,1760110247330,-160.0,0.00021756,5]
[390644660,1760110247340,-1100.0,0.00021808,2]
[390644661,1760110247352,-500.0,0.0002182,2]
[390644662,1760110247365,-800.0,0.00021871,2]
[390644663,1760110247374,-800.0,0.00021898,2]
[390644664,1760110247385,-5478.71528869,0.000219,7]
[390644665,1760110247394,-1000.0,0.00021917,5]
[390644666,1760110247404,-1000.0,0.00021917,5]
[390644667,1760110247413,-1000.0,0.00021917,5]
[390644668,1760110247422,-1000.0,0.00021917,5]
[390644669,1760110247432,-1000.0,0.00021917,5]
[390644670,1760110247441,-205.22500721,0.00021917,5]
[390644671,1760110247451,-153.0,0.00021918,2]
[390644672,1760110247460,-153.0,0.00021918,2]
[390644673,1760110247469,-153.0,0.00021918,2]
[390644674,1760110247479,-153.0,0.00021918,2]
[390644675,1760110247488,-153.0,0.00021918,2]
[390644676,1760110247498,-153.0,0.00021918,2]
[390644677,1760110247508,-153.0,0.00021918,2]
[390644678,1760110247519,-153.0,0.00021918,2]
[390644679,1760110247529,-153.0,0.00021918,2]
[390644680,1760110247539,-153.0,0.00021918,2]
[390644681,1760110247549,-153.0,0.00021918,2]
[390644682,1760110247559,-153.0,0.00021918,2]
[390644683,1760110247569,-153.0,0.00021918,2]
[390644684,1760110247579,-153.0,0.00021918,2]
[390644685,1760110247588,-153.0,0.00021918,2]
[390644686,1760110247599,-153.0,0.00021918,2]
[390644687,1760110247615,-153.0,0.00021918,2]
[390644688,1760110247624,-153.0,0.00021918,2]
[390644689,1760110247634,-153.0,0.00021918,2]
[390644690,1760110247643,-153.0,0.00021918,2]
[390644691,1760110247653,-153.0,0.00021918,2]
[390644692,1760110247662,-153.0,0.00021918,2]
[390644693,1760110247672,-153.0,0.00021918,2]
[390644694,1760110247682,-153.0,0.00021918,2]
[390644695,1760110247691,-153.0,0.00021918,2]
[390644696,1760110247701,-153.0,0.00021918,2]
[390644697,1760110247711,-153.0,0.00021918,2]
[390644698,1760110247721,-153.0,0.00021918,2]
[390644699,1760110247731,-153.0,0.00021918,2]
[390644700,1760110247740,-153.0,0.00021918,2]
[390644701,1760110247750,-153.0,0.00021918,2]
[390644702,1760110247760,-153.0,0.00021918,2]
[390644703,1760110247770,-153.0,0.00021918,2]
[390644704,1760110247780,-153.0,0.00021918,2]
[390644705,1760110247791,-153.0,0.00021918,2]
[390644706,1760110247807,-153.0,0.00021918,2]
[390644707,1760110247817,-153.0,0.00021918,2]
[390644708,1760110247830,-153.0,0.00021918,2]
[390644709,1760110247840,-153.0,0.00021918,2]
[390644710,1760110247850,-153.0,0.00021918,2]
[390644711,1760110247865,-153.0,0.00021918,2]
[390644712,1760110247876,-153.0,0.00021918,2]
[390644713,1760110247886,-153.0,0.00021918,2]
[390644714,1760110247896,-153.0,0.00021918,2]
[390644715,1760110247906,-153.0,0.00021918,2]
[390644716,1760110247918,-153.0,0.00021918,2]
[390644717,1760110247928,-153.0,0.00021918,2]
[390644718,1760110247938,-153.0,0.00021918,2]
[390644719,1760110247948,-153.0,0.00021918,2]
[390644720,1760110247958,-153.0,0.00021918,2]
[390644721,1760110247969,-153.0,0.00021918,2]
[390644722,1760110247978,-528.782091,0.00021918,7]
[390644723,1760110247988,-528.782091,0.00021918,7]
[390644724,1760110247998,-528.782091,0.00021918,7]
[390644725,1760110248008,-528.782091,0.00021918,7]
[390644726,1760110248018,-528.782091,0.00021918,7]
[390644727,1760110248027,-528.782091,0.00021918,7]
[390644728,1760110248037,-528.782091,0.00021918,7]
[390644729,1760110248047,-528.782091,0.00021918,7]
[390644730,1760110248056,-528.782091,0.00021918,7]
[390644731,1760110248066,-528.782091,0.00021918,7]
[390644732,1760110248077,-528.782091,0.00021918,7]
[390644733,1760110248087,-528.782091,0.00021918,7]
[390644734,1760110248097,-528.782091,0.00021918,7]
[390644735,1760110248114,-528.782091,0.00021918,7]
[390644736,1760110248124,-528.782091,0.00021918,7]
[390644737,1760110248133,-528.782091,0.00021918,7]
[390644738,1760110248142,-528.782091,0.00021918,7]
[390644739,1760110248152,-528.782091,0.00021918,7]
[390644740,1760110248162,-528.782091,0.00021918,7]
[390644741,1760110248171,-528.782083,0.00021918,7]
[390644742,1760110248181,-1479.8305893,0.00021918,7]
[390644743,1760110248191,-151.0,0.00021918,7]
[390644744,1760110248201,-151.0,0.00021918,7]
[390644745,1760110248211,-151.0,0.00021918,7]
[390644746,1760110248220,-151.0,0.00021918,7]
[390644747,1760110248229,-220.672546,0.00021918,7]
[390644748,1760110248239,-306.87077929,0.00021918,2]
[390644749,1760110248249,-151.0,0.00021918,7]
[390644750,1760110248258,-151.0,0.00021918,7]
[390644751,1760110248267,-151.0,0.00021918,7]
[390644752,1760110248276,-151.0,0.00021918,7]
[390644753,1760110248285,-151.0,0.00021918,7]
[390644754,1760110248295,-151.0,0.00021918,7]
[390644755,1760110248305,-151.0,0.00021918,7]
[390644756,1760110248315,-151.0,0.00021918,7]
[390644757,1760110248325,-151.0,0.00021918,7]
[390644758,1760110248334,-151.0,0.00021918,7]
[390644759,1760110248344,-151.0,0.00021918,7]
[390644760,1760110248360,-151.0,0.00021918,7]
[390644761,1760110248370,-281.190019,0.00021918,7]
[390644762,1760110248380,-19367.1276301,0.00021956,2]
[390644763,1760110248391,-37013.33927251,0.00021979,2]
[390644764,1760110248401,-800.0,0.00021984,2]
[390644765,1760110248412,-357.23863463,0.00022,2]
[390644766,1760110248423,-499.0,0.00022,2]
[390644767,1760110248433,-1015.0,0.00022,2]
[390644768,1760110248444,-1041.66666667,0.00022,7]
[390644769,1760110248454,-1000.0,0.00022,2]
[390644770,1760110248464,-800.0,0.00022004,2]
[390644771,1760110248475,-500.0,0.00022007,2]
[390644772,1760110248485,-500.0,0.00022046,2]
[390644773,1760110248495,-500.0,0.00022062,2]
[390644774,1760110248505,-500.0,0.00022075,2]
[390644775,1760110248515,-500.0,0.00022081,2]
[390644776,1760110248526,-500.0,0.00022085,2]
[390644777,1760110248536,-500.0,0.00022099,2]
[390644778,1760110248546,-200.0,0.000221,2]
[390644779,1760110248556,-660.0,0.00022115,2]
[390644780,1760110248565,-500.0,0.00022123,2]
[390644781,1760110248575,-800.0,0.00022125,2]
[390644782,1760110248585,-201.0,0.0002214,3]
[390644783,1760110248595,-800.0,0.00022142,2]
[390644784,1760110248611,-800.0,0.0002216,2]
[390644785,1760110248620,-800.0,0.0002216,2]
[390644786,1760110248630,-2500.0,0.00022164,2]
[390644787,1760110248643,-2500.0,0.00022164,2]
[390644788,1760110248652,-2500.0,0.00022164,2]
[390644789,1760110248662,-2500.0,0.00022164,2]
[390644790,1760110248673,-2500.0,0.00022164,2]
[390644791,1760110248683,-2500.0,0.00022164,2]
[390644792,1760110248693,-794.818576,0.00022164,2]
[390644793,1760110248703,-500.0,0.00022188,2]
[390644794,1760110248714,-500.0,0.00022188,2]
[390644795,1760110248725,-500.0,0.00022188,2]
[390644796,1760110248735,-800.0,0.00022221,2]
[390644797,1760110248746,-500.0,0.00022224,2]
[390644798,1760110248756,-500.0,0.00022235,2]
[390644799,1760110248765,-421.00515642,0.00022244,2]
[390644800,1760110248775,-500.0,0.00022244,2]
[390644801,1760110248784,-756.21457135,0.00022269,8]
[390644802,1760110248800,-500.0,0.00022284,2]
[390644803,1760110248810,-800.0,0.00022295,2]
[390644804,1760110248819,-784.06853486,0.00022301,2]
[390644805,1760110248830,-500.0,0.00022306,2]
[390644806,1760110248842,-500.0,0.00022306,2]
[390644807,1760110248857,-500.0,0.00022306,2]
[390644808,1760110248868,-500.0,0.00022306,2]
[390644809,1760110248879,-535.12245885,0.00022306,2]
[390644810,1760110248890,-500.0,0.00022306,2]
[390644811,1760110248901,-633.35698962,0.00022306,2]
[390644812,1760110248912,-500.0,0.00022316,2]
[390644813,1760110248923,-500.0,0.00022324,2]
[390644814,1760110248934,-483.01616515,0.00022356,2]
[390644815,1760110248944,-500.09664347,0.00022356,2]
[390644816,1760110248954,-500.0,0.00022374,2]
[390644817,1760110248964,-500.0,0.00022374,2]
[390644818,1760110248973,-500.0,0.00022374,2]
[390644819,1760110248983,-161.64396789,0.00022374,2]
[390644820,1760110248993,-500.0,0.00022374,2]
[390644821,1760110249002,-500.0,0.00022374,2]
[390644822,1760110249013,-500.0,0.00022374,2]
[390644823,1760110249023,-500.0,0.00022374,2]
[390644824,1760110249034,-500.0,0.00022374,2]
[390644825,1760110249044,-302.2615608,0.00022374,2]
[390644826,1760110249054,-500.17766712,0.00022374,2]
[390644827,1760110249064,-500.0,0.00022385,2]
[390644828,1760110249073,-26425.99,0.00022423,2]
[390644829,1760110249083,-500.0,0.00022474,2]
[390644830,1760110249099,-756.21457135,0.00022492,8]
[390644831,1760110249115,-1019.63048905,0.000225,2]
[390644832,1760110249126,-160.0,0.000225,7]
[390644833,1760110249136,-1000.0,0.000225,4]
[390644834,1760110249148,-1000.0,0.000225,2]
[390644835,1760110249158,-500.0,0.00022506,2]
[390644836,1760110249168,-500.0,0.00022519,2]
[390644837,1760110249178,-500.0,0.00022547,2]
[390644838,1760110249186,-173.01031724,0.00022548,2]
[390644839,1760110249194,-500.0,0.00022554,2]
[390644840,1760110249205,-800.0,0.00022571,2]
[390644841,1760110249215,-500.0,0.00022579,2]
[390644842,1760110249226,-500.0,0.00022635,2]
[390644843,1760110249237,-293.85068442,0.00022639,2]
[390644844,1760110249247,-500.0,0.00022647,2]
[390644845,1760110249256,-173.01031724,0.00022658,2]
[390644846,1760110249266,-800.0,0.00022662,2]
[390644847,1760110249285,-760.0,0.00022663,2]
[390644848,1760110249298,-500.0,0.00022667,2]
[390644849,1760110249309,-371.35200119,0.00022712,2]
[390644850,1760110249319,-3000.0,0.00022712,2]
[390644851,1760110249330,-3000.0,0.00022712,2]
[390644852,1760110249342,-3000.0,0.00022712,2]
[390644853,1760110249358,-3000.0,0.00022712,2]
[390644854,1760110249368,-3000.0,0.00022712,2]
[390644855,1760110249380,-907.45748562,0.00022714,10]
[390644856,1760110249390,-1115.25639158,0.00022735,2]
[390644857,1760110249402,-1000.0,0.00022735,2]
[390644858,1760110249414,-432.16514141,0.00022735,2]
[390644859,1760110249424,-4195.0,0.00022745,2]
[390644860,1760110249435,-173.01031724,0.00022767,2]
[390644861,1760110249447,-1000.0,0.00022792,2]
[390644862,1760110249458,-5000.0,0.000228,2]
[390644863,1760110249469,-1000.0,0.000228,5]
[390644864,1760110249480,-500.0,0.00022823,2]
[390644865,1760110249491,-1000.0,0.00022854,2]
[390644866,1760110249502,-1000.0,0.00022854,2]
[390644867,1760110249512,-1000.0,0.00022854,2]
[390644868,1760110249523,-1000.0,0.00022854,2]
[390644869,1760110249533,-1000.0,0.00022854,2]
[390644870,1760110249544,-800.0,0.00022863,2]
[390644871,1760110249554,-500.0,0.00022865,2]
[390644872,1760110249564,-173.01031724,0.00022877,2]
[390644873,1760110249575,-200.0,0.000229,14]
[390644874,1760110249585,-831.11264695,0.00022901,2]
[390644875,1760110249595,-1100.0,0.00022904,2]
[390644876,1760110249612,-500.0,0.00022907,2]
[390644877,1760110249622,-200.0,0.0002291,2]
[390644878,1760110249634,-1000.0,0.00022922,2]
[390644879,1760110249644,-1000.0,0.00022922,2]
[390644880,1760110249654,-1000.0,0.00022922,2]
[390644881,1760110249665,-1000.0,0.00022922,2]
[390644882,1760110249674,-1000.0,0.00022922,2]
[390644883,1760110249684,-1070.52865328,0.00022922,2]
[390644884,1760110249694,-1000.0,0.00022922,2]
[390644885,1760110249704,-1057.1179308,0.00022922,2]
[390644886,1760110249714,-500.0,0.00022923,2]
[390644887,1760110249724,-907.45748562,0.00022937,10]
[390644888,1760110249734,-500.0,0.00022973,2]
[390644889,1760110249744,-500.0,0.00022973,2]
[390644890,1760110249754,-500.0,0.00022973,2]
[390644891,1760110249764,-500.0,0.00022973,2]
[390644892,1760110249774,-500.0,0.00022973,2]
[390644893,1760110249785,-500.0,0.00022973,2]
[390644894,1760110249801,-500.0,0.00022973,2]
[390644895,1760110249812,-500.0,0.00022973,2]
[390644896,1760110249823,-500.0,0.00022973,2]
[390644897,1760110249834,-500.2545193,0.00022973,2]
[390644898,1760110249847,-200.01918256,0.00022973,2]
[390644899,1760110249864,-500.0,0.00022973,2]
[390644900,1760110249874,-500.0,0.00022973,2]
[390644901,1760110249885,-500.0,0.00022973,2]
[390644902,1760110249896,-500.0,0.00022973,2]
[390644903,1760110249907,-500.16542592,0.00022973,2]
[390644904,1760110249917,-500.0,0.00022973,2]
[390644905,1760110249928,-500.0,0.00022973,2]
[390644906,1760110249938,-500.0,0.00022973,2]
[390644907,1760110249948,-500.0,0.00022973,2]
[390644908,1760110249959,-587.72650417,0.00022973,2]
[390644909,1760110249971,-500.0,0.00022973,2]
[390644910,1760110249982,-500.0,0.00022973,2]
[390644912,1760110249993,-500.0,0.00022973,2]
[390644914,1760110250003,-500.0,0.00022973,2]
[390644915,1760110250014,-500.0,0.00022973,2]
[390644916,1760110250024,-500.0,0.00022973,2]
[390644917,1760110250034,-500.0,0.00022973,2]
[390644918,1760110250045,-500.0,0.00022973,2]
[390644919,1760110250055,-500.0,0.00022973,2]
[390644920,1760110250066,-500.0,0.00022973,2]
[390644921,1760110250076,-500.0,0.00022973,2]
[390644922,1760110250086,-500.0,0.00022973,2]
[390644923,1760110250096,-500.0,0.00022973,2]
[390644924,1760110250111,-500.0,0.00022973,2]
[390644925,1760110250122,-415.94803353,0.00022973,2]
[390644926,1760110250135,-500.0,0.00022973,2]
[390644927,1760110250149,-500.0,0.00022973,2]
[390644928,1760110250167,-500.0,0.00022973,2]
[390644929,1760110250177,-611.92759044,0.00022973,2]
[390644930,1760110250187,-500.0,0.00022973,2]
[390644931,1760110250198,-500.0,0.00022973,2]
[390644932,1760110250207,-500.0,0.00022973,2]
[390644933,1760110250218,-500.0,0.00022973,2]
[390644934,1760110250229,-391.7808599,0.00022983,2]
[390644935,1760110250239,-173.01031724,0.00022986,2]
[390644936,1760110250250,-5318.00114445,0.00023,2]
[390644937,1760110250261,-47518.12638773,0.00023,3]
[390644938,1760110250272,-500.89064688,0.00023,14]
[390644939,1760110250282,-181868.38249563,0.00023,7]
[390644940,1760110250292,-500.0,0.00023,2]
[390644941,1760110250302,-611.5,0.00023,5]
[390644942,1760110250313,-2000.0,0.00023,2]
[390644943,1760110250323,-4601.35928455,0.00023,3]
[390644944,1760110250334,-279.0,0.00023,2]
[390644945,1760110250343,-108206.42666778,0.00023,7]
[390644946,1760110250357,-20000.0,0.00023,14]
[390644947,1760110250368,-7373.45723571,0.00023,2]
[390644948,1760110250378,-234.32063665,0.00023,3]
[390644949,1760110250388,-160.0,0.00023,3]
[390644950,1760110250398,-1041.66666667,0.00023,10]
[390644951,1760110250409,-1041.66666667,0.00023,3]
[390644952,1760110250419,-160.0,0.00023,3]
[390644953,1760110250429,-160.0,0.00023,3]
[390644954,1760110250440,-234.32063665,0.00023,3]
[390644955,1760110250450,-298.03512572,0.00023,3]
[390644956,1760110250460,-160.0,0.00023,3]
[390644957,1760110250470,-160.0,0.00023,2]
[390644958,1760110250481,-22513.79989068,0.00023,7]
[390644959,1760110250642,-41610.0,0.00023,7]
[390644960,1760110250660,-192.34552844,0.00019752,2]
[390644961,1760110250670,-610.26197776,0.00023,7]
[390644962,1760110250682,-41808.39851359,0.00023,7]
[390645003,1760110303159,155.752932,0.00024,30]
[390645004,1760110303584,155.752932,0.00024,30]
[390645005,1760110331183,200.0,0.0002875,120]
[390645006,1760110333513,200.0,0.0002875,120]
[390645007,1760110336080,201.44393032,0.0002875,120]
[390645017,1760110373579,155.752932,0.00024,30]
[390645045,1760110458748,180.0,0.00017,10]
[390645055,1760110526827,158.0,0.000287,120]
[390645059,1760110537339,250.0,0.00024,30]
[390645060,1760110539176,161.68439934,0.000287,120]
[390645063,1760110570466,315.4,0.00024,30]
[390645104,1760110920566,2075.22,0.00024,30]
[390645116,1760111021817,155.752932,0.00024,30]
[390645230,1760111433022,-184.63647817,0.000159,2]
[390645232,1760111433032,-257.27957505,0.000159,2]
[390645235,1760111433042,-300.0,0.00015999,2]
[390645237,1760111433052,-300.0,0.00015999,2]
[390645239,1760111433066,-1200.0,0.00015999,2]
[390645240,1760111433076,-1882.58394678,0.00016,2]
[390645243,1760111433088,-1190.75952166,0.00016,2]
[390645326,1760111437910,-256.04000004,0.00016,2]
[390645327,1760111437922,-2113.9,0.00016,2]
[390645328,1760111438029,-302.54622906,0.00016,2]
[390645329,1760111438040,-1086.56220887,0.00016,2]
[390645330,1760111438051,-52671.60809359,0.00016,2]
[390645331,1760111438060,-202.88794548,0.00016,2]
[390645332,1760111438074,-158.38369845,0.000161,2]
[390645333,1760111438083,-152.81485953,0.000162,2]
[390645334,1760111438093,-218.24136754,0.00016201,2]
[390645335,1760111438102,-272.10343616,0.00016201,2]
[390645336,1760111438111,-300.0,0.00016319,2]
[390645338,1760111438121,-300.0,0.00016319,2]
[390645339,1760111438130,-300.0,0.00016319,2]
[390645340,1760111438139,-300.0,0.00016319,2]
[390645341,1760111438148,-300.0,0.00016319,2]
[390645342,1760111438158,-300.0,0.00016319,2]
[390645343,1760111438167,-300.0,0.00016319,2]
[390645344,1760111438177,-300.0,0.00016319,2]
[390645345,1760111438189,-300.0,0.00016319,2]
[390645346,1760111438199,-300.0,0.00016319,2]
[390645347,1760111438208,-300.0,0.00016319,2]